bitfinex/quotes_SOLUSD_20230101
["timestamp","ask_amount","ask_price","bid_price","bid_amount"]
[1672556911232,40.0,9.7927,9.7855,24.576]
[1672556911546,76.67,9.7926,9.7855,24.576]
[1672556911859,76.67,9.7928,9.7855,24.576]
[1672556913638,152.61918971,9.7928,9.7855,24.576]
[1672556914485,76.67,9.7928,9.7855,24.576]
[1672556914686,76.67,9.7928,9.7856,40.0]
[1672556915114,113.5428,9.7929,9.7856,40.0]
[1672556915330,113.5428,9.7929,9.7856,62.9681]
[1672556915529,113.5428,9.7929,9.7858,40.0]
[1672556916580,76.67,9.7928,9.7858,40.0]
[1672556919014,76.67,9.7928,9.7858,345.4]
[1672556919438,113.5428,9.7929,9.7858,345.4]
[1672556920156,76.67,9.7928,9.7858,40.0]
[1672556921205,76.67,9.7928,9.7857,22.9681]
[1672556921416,75.94918971,9.7923,9.7857,22.9681]
[1672556923953,75.94918971,9.7919,9.7857,22.9681]
[1672556924474,75.94918971,9.792,9.7857,22.9681]
[1672556928162,75.94918971,9.7924,9.7857,22.9681]
[1672556928568,75.94918971,9.792,9.7857,22.9681]
[1672556928990,75.94918971,9.7919,9.7857,22.9681]
[1672556929208,75.94918971,9.792,9.7857,22.9681]
[1672556932040,75.94918971,9.7919,9.7857,22.9681]
[1672556932454,75.94918971,9.7922,9.7857,22.9681]
[1672556933197,113.5428,9.7929,9.7857,22.9681]
[1672556933714,113.5428,9.7929,9.7859,40.0]
[1672556935201,113.5428,9.7929,9.7857,22.9681]
[1672556936251,76.67,9.7928,9.7857,22.9681]
[1672556938981,76.67,9.7928,9.7858,40.0]
[1672556939293,113.5428,9.7929,9.7859,76.73]
[1672556939508,151.91606773,9.8017,9.7859,76.73]
[1672556939509,76.63,9.7977,9.7861,40.0]
[1672556939699,40.0,9.8019,9.7862,230.8881]
[1672556939700,76.61,9.8014,9.7862,230.8881]
[1672556939915,40.0,9.8014,9.7863,40.0]
[1672556940126,76.61,9.8013,9.7865,40.0]
[1672556940454,76.6,9.8015,9.7866,159.12735224]
[1672556940674,76.6,9.8015,9.7866,314.49245224]
[1672556940880,130.23860932,9.8015,9.7866,175.3651]
[1672556941186,40.0,9.8013,9.7867,40.0]
[1672556941501,76.61,9.8012,9.7869,40.0]
[1672556941720,40.0,9.8011,9.7871,40.0]
[1672556942022,40.0,9.8009,9.7873,40.0]
[1672556942222,76.61,9.8008,9.7874,76.72]
[1672556942431,76.61,9.8008,9.7875,20.0]
[1672556942645,40.0,9.8007,9.7876,116.71]
[1672556942856,40.0,9.8005,9.7877,20.0]
[1672556943065,76.61,9.8004,9.7879,40.0]
[1672556943277,40.0,9.8003,9.788,76.71]
[1672556943480,40.0,9.8001,9.7881,60.0]
[1672556943705,40.0,9.7999,9.7883,40.0]
[1672556944022,40.0,9.7997,9.7884,20.0]
[1672556944236,76.62,9.7996,9.7884,20.0]
[1672556944449,40.0,9.7995,9.7886,40.0]
[1672556944661,40.0,9.7993,9.7886,40.0]
[1672556944974,40.0,9.7991,9.7887,20.0]
[1672556945184,76.62,9.799,9.7888,40.0]
[1672556945379,40.0,9.7991,9.7889,20.0]
[1672556945589,76.62,9.799,9.7889,20.0]
[1672556945806,76.62,9.799,9.7891,40.0]
[1672556946009,40.0,9.7989,9.7892,20.0]
[1672556946226,76.63,9.7988,9.7892,20.0]
[1672556946437,76.63,9.7988,9.7894,40.0]
[1672556947066,76.63,9.7988,9.7896,40.0]
[1672556947281,40.0,9.7993,9.7896,40.0]
[1672556947489,76.62,9.7992,9.7896,40.0]
[1672556947704,76.62,9.7992,9.7898,40.0]
[1672556948320,40.0,9.7991,9.79,40.0]
[1672556948539,76.62,9.799,9.79,40.0]
[1672556948758,76.61,9.8008,9.7901,23.6598]
[1672556948950,40.0,9.8007,9.7902,40.0]
[1672556949167,40.0,9.8005,9.7902,40.0]
[1672556949367,76.61,9.8004,9.7902,40.0]
[1672556949581,40.0,9.8003,9.7904,40.0]
[1672556949791,40.0,9.8001,9.7904,40.0]
[1672556950016,76.62,9.8,9.7904,40.0]
[1672556950229,76.62,9.8,9.7906,40.0]
[1672556950435,40.0,9.7999,9.7906,40.0]
[1672556950640,76.62,9.7998,9.7906,40.0]
[1672556950843,40.0,9.7997,9.7907,22.7352]
[1672556951059,76.12,9.7996,9.7907,22.7352]
[1672556951264,76.62,9.8002,9.7907,22.7352]
[1672556951478,40.0,9.8001,9.7908,22.7352]
[1672556951694,76.62,9.8,9.7908,22.7352]
[1672556952015,76.61,9.8006,9.791,40.0]
[1672556952231,76.61,9.801,9.791,40.0]
[1672556952539,40.0,9.8017,9.7912,40.0]
[1672556952730,40.0,9.8015,9.7912,40.0]
[1672556952942,76.61,9.8014,9.7912,40.0]
[1672556953161,40.0,9.8013,9.7914,40.0]
[1672556953386,40.0,9.8011,9.7914,40.0]
[1672556953581,76.61,9.801,9.7913,163.8977]
[1672556953788,40.0,9.8009,9.7915,40.0]
[1672556953995,76.61,9.8008,9.7915,40.0]
[1672556954216,40.0,9.8007,9.7915,40.0]
[1672556954426,40.0,9.8005,9.7916,22.5551]
[1672556954628,76.61,9.8004,9.7916,22.5551]
[1672556954835,40.0,9.8009,9.7916,22.5551]
[1672556955043,76.61,9.8008,9.7917,22.5551]
[1672556955778,76.61,9.8008,9.7918,22.5551]
[1672556956203,40.0,9.8007,9.7918,22.5551]
[1672556956413,76.61,9.8006,9.7919,22.5551]
[1672556956639,40.0,9.8005,9.7919,22.5551]
[1672556956830,40.0,9.8003,9.7919,22.5551]
[1672556957043,40.0,9.8001,9.792,24.1251]
[1672556957266,40.0,9.8001,9.7906,40.0]
[1672556957267,76.62,9.8,9.7863,76.72]
[1672556957477,75.94918971,9.7984,9.7782,186.0652]
[1672556957794,75.94918971,9.7982,9.7784,40.0]
[1672556957998,75.94918971,9.7979,9.7785,148.6096]
[1672556958209,40.0,9.7977,9.7786,40.0]
[1672556958418,40.0,9.7975,9.7788,40.0]
[1672556958744,40.0,9.7973,9.779,40.0]
[1672556958951,40.0,9.7973,9.7791,96.78]
[1672556958952,96.64,9.7972,9.7791,96.78]
[1672556959141,40.0,9.7971,9.7792,40.0]
[1672556959351,40.0,9.7969,9.7794,40.0]
[1672556959561,96.64,9.7968,9.7795,76.78]
[1672556959783,40.0,9.7967,9.7796,40.0]
[1672556959982,40.0,9.7965,9.7797,76.78]
[1672556960189,96.64,9.7964,9.7798,40.0]
[1672556960409,40.0,9.7963,9.78,40.0]
[1672556960746,40.0,9.7961,9.7802,40.0]
[1672556961048,96.65,9.796,9.7804,40.0]
[1672556961262,40.0,9.7959,9.7805,76.77]
[1672556961464,40.0,9.7957,9.7806,40.0]
[1672556961675,96.65,9.7956,9.7806,40.0]
[1672556961885,40.0,9.7955,9.7806,40.0]
[1672556962090,40.0,9.7953,9.7807,164.9508]
[1672556962300,40.0,9.7951,9.7807,164.9508]
[1672556962510,96.66,9.795,9.7807,164.9508]
[1672556962736,357.2658946,9.795,9.7809,305.4]
[1672556962926,151.91606773,9.8044,9.7808,180.75810786]
[1672556962927,40.0,9.8017,9.7813,305.4]
[1672556963136,40.0,9.8017,9.7821,305.4]
[1672556963358,40.0,9.8017,9.7824,40.0]
[1672556963573,40.0,9.8015,9.7827,40.0]
[1672556963775,76.61,9.8014,9.7829,305.4]
[1672556963984,40.0,9.8013,9.7831,345.4]
[1672556964194,40.0,9.8013,9.7834,40.0]
[1672556964195,40.0,9.8011,9.7834,40.0]
[1672556964516,40.0,9.8009,9.7837,40.0]
[1672556964727,40.0,9.8007,9.784,40.0]
[1672556964945,76.61,9.8006,9.7842,305.4]
[1672556965140,40.0,9.8005,9.7844,305.4]
[1672556965351,76.61,9.8004,9.7847,40.0]
[1672556965558,76.61,9.8004,9.7849,305.4]
[1672556965776,76.61,9.801,9.7851,305.4]
[1672556965985,76.61,9.801,9.7854,40.0]
[1672556966194,40.0,9.8009,9.7857,40.0]
[1672556966528,40.0,9.8009,9.786,40.0]
[1672556966529,76.61,9.8008,9.786,40.0]
[1672556966738,40.0,9.8007,9.7862,305.4]
[1672556966931,76.61,9.8006,9.7864,345.4]
[1672556967143,76.61,9.8006,9.7867,40.0]
[1672556967375,76.61,9.8006,9.787,40.0]
[1672556967686,76.61,9.801,9.7873,40.0]
[1672556967881,76.61,9.801,9.7875,305.4]
[1672556968089,76.61,9.801,9.7878,40.0]
[1672556968412,76.61,9.801,9.7881,40.0]
[1672556968731,76.61,9.801,9.7883,345.4]
[1672556968938,76.61,9.801,9.7885,345.4]
[1672556969161,40.0,9.8009,9.7888,40.0]
[1672556969362,40.0,9.8007,9.789,305.4]
[1672556969685,76.61,9.8006,9.7891,40.0]
[1672556969993,40.0,9.8011,9.7893,40.0]
[1672556970205,76.61,9.801,9.7893,345.4]
[1672556970405,76.61,9.8012,9.7893,345.4]
[1672556970616,76.6,9.8016,9.7896,40.0]
[1672556971254,40.0,9.8015,9.7899,40.0]
[1672556971473,76.61,9.8014,9.7899,40.0]
[1672556971870,76.61,9.8014,9.7902,40.0]
[1672556972306,40.0,9.8018,9.7902,40.0]
[1672556972519,76.6,9.8017,9.7905,40.0]
[1672556973153,76.6,9.8017,9.7907,40.0]
[1672556973345,76.6,9.8019,9.7907,40.0]
[1672556973557,76.6,9.8019,9.7909,40.0]
[1672556974309,76.6,9.8019,9.7911,40.0]
[1672556974618,40.0,9.8018,9.7911,40.0]
[1672556974810,76.6,9.8017,9.7913,40.0]
[1672556975233,76.6,9.8019,9.7913,40.0]
[1672556975448,76.6,9.8019,9.7915,40.0]
[1672556976081,76.6,9.8019,9.7917,40.0]
[1672556976294,40.0,9.8018,9.7917,40.0]
[1672556976512,76.6,9.8017,9.7917,40.0]
[1672556976714,76.6,9.8017,9.7919,40.0]
[1672556977121,40.0,9.8016,9.7919,40.0]
[1672556977333,40.0,9.8016,9.792,165.404]
[1672556977334,76.6,9.8015,9.792,165.404]
[1672556977544,76.6,9.8015,9.7921,40.0]
[1672556977754,40.0,9.8014,9.7921,40.0]
[1672556977976,76.61,9.8013,9.7922,48.1763]
[1672556978182,40.0,9.8012,9.7922,48.1763]
[1672556978391,76.61,9.8011,9.7922,48.1763]
[1672556978602,76.61,9.8011,9.7923,23.419]
[1672556979228,76.61,9.8011,9.7924,23.419]
[1672556979441,40.0,9.8012,9.7924,23.419]
[1672556979650,76.61,9.8011,9.7924,23.419]
[1672556979859,76.61,9.8011,9.7925,24.5884]
[1672556980070,76.61,9.8013,9.7925,24.5884]
[1672556980286,40.0,9.8014,9.7925,24.5884]
[1672556980517,76.61,9.8013,9.7926,24.5884]
[1672556980906,40.0,9.8018,9.7926,24.5884]
[1672556981121,76.6,9.8017,9.7927,24.5884]
[1672556981332,76.6,9.8019,9.7927,24.5884]
[1672556981771,40.0,9.8018,9.7928,49.5058]
[1672556981967,76.6,9.8017,9.7928,49.5058]
[1672556982383,76.6,9.8017,9.7929,24.5884]
[1672556982907,76.6,9.8017,9.793,22.5055]
[1672556983328,40.0,9.8016,9.793,22.5055]
[1672556983544,40.0,9.8014,9.7931,22.5055]
[1672556983753,76.61,9.8013,9.7931,22.5055]
[1672556984392,76.61,9.8013,9.7932,22.5055]
[1672556984917,40.0,9.8012,9.7932,22.5055]
[1672556985115,76.61,9.8011,9.7933,22.5055]
[1672556985444,40.0,9.801,9.7933,22.5055]
[1672556985663,40.0,9.8008,9.7934,24.6079]
[1672556985854,76.61,9.8007,9.7934,24.6079]
[1672556986186,40.0,9.8006,9.7934,24.6079]
[1672556986380,40.0,9.8004,9.7934,24.6079]
[1672556986590,40.0,9.8002,9.7934,24.6079]
[1672556986814,76.62,9.8001,9.7934,24.6079]
[1672556987008,40.0,9.8,9.7934,24.6079]
[1672556987223,76.62,9.7999,9.7934,24.6079]
[1672556988483,76.62,9.8001,9.7934,24.6079]
[1672556989440,40.0,9.8002,9.7934,24.6079]
[1672556989653,40.0,9.8,9.7934,24.6079]
[1672556989963,76.62,9.7999,9.7934,24.6079]
[1672556990581,40.0,9.7998,9.7934,24.6079]
[1672556990909,76.62,9.7997,9.7934,24.6079]
[1672556991113,40.0,9.7996,9.7934,24.6079]
[1672556991329,40.0,9.7994,9.7934,24.6079]
[1672556991641,40.0,9.7992,9.7934,24.6079]
[1672556991844,40.0,9.799,9.7934,24.6079]
[1672556992044,76.63,9.7989,9.7934,24.6079]
[1672556992255,76.62,9.7993,9.7934,24.6079]
[1672556992598,40.0,9.7992,9.7934,24.6079]
[1672556992786,76.62,9.7991,9.7934,24.6079]
[1672556993540,76.62,9.7995,9.7934,24.6079]
[1672556993965,40.0,9.7994,9.7934,24.6079]
[1672556994277,76.62,9.7993,9.7934,24.6079]
[1672556994590,40.0,9.7998,9.7934,24.6079]
[1672556994907,76.62,9.7997,9.7934,24.6079]
[1672556995099,40.0,9.8006,9.7934,24.6079]
[1672556995309,40.0,9.8004,9.7934,24.6079]
[1672556995518,76.61,9.8003,9.7934,24.6079]
[1672556995839,40.0,9.8002,9.7934,24.6079]
[1672556996058,40.0,9.8,9.7934,24.6079]
[1672556996251,40.0,9.7998,9.7934,24.6079]
[1672556996463,76.62,9.7997,9.7934,24.6079]
[1672556996878,40.0,9.8002,9.7934,24.6079]
[1672556997097,76.62,9.8001,9.7934,24.6079]
[1672556998034,40.0,9.8004,9.7934,24.6079]
[1672556998251,40.0,9.8002,9.7934,24.6079]
[1672556998478,76.62,9.8001,9.7934,24.6079]
[1672556999647,76.61,9.8003,9.7934,24.6079]
[1672556999860,40.0,9.8002,9.7934,24.6079]
[1672557000066,76.62,9.8001,9.7934,24.6079]
[1672557001117,40.0,9.8006,9.7934,24.6079]
[1672557001323,76.61,9.8005,9.7934,24.6079]
[1672557001859,40.0,9.801,9.7934,24.6079]
[1672557002056,76.61,9.8009,9.7934,24.6079]
[1672557002261,76.61,9.8011,9.7935,23.0062]
[1672557002691,40.0,9.8017,9.7935,23.0062]
[1672557002891,76.6,9.8018,9.7928,24.9174]
[1672557002892,76.6,9.8016,9.7936,23.41]
[1672557003100,76.6,9.8018,9.7936,23.41]
[1672557003325,76.6,9.8019,9.7937,23.41]
[1672557003854,76.6,9.8019,9.7931,40.0]
[1672557003855,76.6,9.8019,9.7938,23.41]
[1672557004367,76.6,9.8019,9.7939,23.41]
[1672557004582,40.0,9.8018,9.7939,23.41]
[1672557004782,76.6,9.8017,9.7939,23.41]
[1672557004994,76.6,9.8017,9.794,23.41]
[1672557005416,76.6,9.8017,9.7941,40.0]
[1672557005628,76.6,9.8019,9.7941,63.2487]
[1672557006262,76.59,9.8029,9.7943,40.0]
[1672557006693,152.53918971,9.8029,9.7943,40.0]
[1672557006891,152.53918971,9.8029,9.7945,40.0]
[1672557007211,75.94918971,9.8009,9.7945,40.0]
[1672557007433,75.94918971,9.801,9.7947,40.0]
[1672557008350,75.94918971,9.8009,9.7947,40.0]
[1672557009399,75.94918971,9.801,9.7947,40.0]
[1672557009630,75.94918971,9.801,9.7947,63.7187]
[1672557010353,75.94918971,9.8009,9.7947,23.7187]
[1672557011411,75.94918971,9.801,9.7947,23.7187]
[1672557011632,75.94918971,9.8009,9.7947,23.7187]
[1672557017208,75.94918971,9.8008,9.7947,23.7187]
[1672557020340,40.0,9.8007,9.7947,23.7187]
[1672557020545,76.61,9.8006,9.7947,23.7187]
[1672557020760,40.0,9.8005,9.7947,23.7187]
[1672557020985,40.0,9.8003,9.7947,23.7187]
[1672557021195,40.0,9.8001,9.7947,23.7187]
[1672557021513,76.62,9.8,9.7947,23.7187]
[1672557021734,40.0,9.8006,9.7947,23.7187]
[1672557021928,40.0,9.8004,9.7947,23.7187]
[1672557022126,76.61,9.8003,9.7947,23.7187]
[1672557022338,76.61,9.8007,9.7947,23.7187]
[1672557023705,152.55918971,9.8007,9.7947,23.7187]
[1672557024352,40.0,9.8006,9.7947,23.7187]
[1672557024674,76.61,9.8005,9.7947,23.7187]
[1672557025171,76.61,9.8006,9.7947,23.7187]
[1672557027396,152.55918971,9.8006,9.7947,23.7187]
[1672557028335,76.61,9.8006,9.7947,23.7187]
[1672557028877,152.55918971,9.8006,9.7947,23.7187]
[1672557030657,75.94918971,9.8006,9.7947,23.7187]
[1672557030871,76.61,9.8005,9.7947,23.7187]
[1672557031066,76.61,9.8006,9.7947,23.7187]
[1672557031278,40.0,9.8005,9.7947,23.7187]
[1672557031489,76.61,9.8004,9.7947,23.7187]
[1672557032124,76.61,9.8005,9.7947,23.7187]
[1672557033479,152.55918971,9.8005,9.7947,23.7187]
[1672557035057,40.0,9.8004,9.7947,23.7187]
[1672557035267,76.61,9.8003,9.7947,23.7187]
[1672557035907,75.94918971,9.8005,9.7947,23.7187]
[1672557035908,76.61,9.8004,9.7947,23.7187]
[1672557038220,152.55918971,9.8004,9.7947,23.7187]
[1672557039047,75.94918971,9.8004,9.7947,23.7187]
[1672557039473,40.0,9.8003,9.7947,23.7187]
[1672557039679,75.94918971,9.8004,9.7947,23.7187]
[1672557039900,40.0,9.8003,9.7947,23.7187]
[1672557040113,75.94918971,9.8004,9.7947,23.7187]
[1672557040642,75.94918971,9.8003,9.7947,23.7187]
[1672557043170,75.94918971,9.8001,9.7947,23.7187]
[1672557045043,76.6,9.8018,9.7947,23.7187]
[1672557045044,75.94918971,9.8,9.7947,23.7187]
[1672557046533,40.0,9.7999,9.7947,23.7187]
[1672557046752,40.0,9.7997,9.7947,23.7187]
[1672557048117,76.62,9.7998,9.7947,23.7187]
[1672557048325,76.62,9.7999,9.7947,23.7187]
[1672557048736,75.94918971,9.8,9.7947,23.7187]
[1672557050419,40.0,9.8,9.7947,23.7187]
[1672557050626,76.62,9.8,9.7947,23.7187]
[1672557051365,152.56918971,9.8,9.7947,23.7187]
[1672557051562,75.94918971,9.8,9.7947,23.7187]
[1672557053481,75.94918971,9.7999,9.7947,23.7187]
[1672557056511,76.6,9.8016,9.7947,23.7187]
[1672557056512,75.94918971,9.7998,9.7947,23.7187]
[1672557057156,75.94918971,9.7999,9.7947,23.7187]
[1672557058503,75.94918971,9.7998,9.7947,23.7187]
[1672557065889,40.0,9.7997,9.7947,23.7187]
[1672557066520,76.62,9.7996,9.7947,23.7187]
[1672557066728,40.0,9.7995,9.7947,23.7187]
[1672557066934,40.0,9.7993,9.7947,23.7187]
[1672557067261,76.62,9.7994,9.7947,23.7187]
[1672557067675,40.0,9.7993,9.7947,23.7187]
[1672557067870,76.62,9.7992,9.7947,23.7187]
[1672557068080,40.0,9.7991,9.7947,23.7187]
[1672557068291,76.62,9.799,9.7947,23.7187]
[1672557068506,40.0,9.7989,9.7947,23.7187]
[1672557068724,76.63,9.7988,9.7947,23.7187]
[1672557068932,40.0,9.7987,9.7947,23.7187]
[1672557070844,40.0,9.7989,9.7947,23.7187]
[1672557071343,76.63,9.7988,9.7947,23.7187]
[1672557071876,107.42584717,9.7987,9.7947,23.7187]
[1672557072089,76.63,9.7986,9.7947,23.7187]
[1672557072278,76.63,9.7986,9.7936,142.4999]
[1672557072279,20.0,9.7985,9.7862,76.72]
[1672557072488,20.0,9.7985,9.7811,305.4]
[1672557072489,75.94918971,9.793,9.7811,305.4]
[1672557072700,152.61918971,9.7929,9.7813,305.4]
[1672557072916,40.0,9.7928,9.7815,305.4]
[1672557073139,40.0,9.7928,9.7811,158.8598]
[1672557073140,40.0,9.7926,9.7817,305.4]
[1672557073349,40.0,9.7926,9.7818,235.6198]
[1672557073350,76.68,9.7925,9.7818,235.6198]
[1672557073540,40.0,9.7924,9.7818,235.6198]
[1672557073746,76.68,9.7923,9.7818,235.6198]
[1672557073971,40.0,9.7922,9.7819,48.2218]
[1672557074189,40.0,9.792,9.7819,48.2218]
[1672557074391,76.68,9.7919,9.7819,48.2218]
[1672557074615,40.0,9.7918,9.782,160.4519]
[1672557074818,76.68,9.7917,9.782,160.4519]
[1672557075025,40.0,9.7916,9.782,160.4519]
[1672557075233,76.68,9.7915,9.782,160.4519]
[1672557075445,40.0,9.7914,9.7821,160.4519]
[1672557075649,40.0,9.7912,9.7822,48.2218]
[1672557075864,40.0,9.791,9.7822,48.2218]
[1672557076190,40.0,9.7908,9.7822,48.2218]
[1672557076379,40.0,9.7906,9.7823,23.481]
[1672557076590,76.69,9.7905,9.7823,23.481]
[1672557076814,40.0,9.7904,9.7823,23.481]
[1672557077013,76.69,9.7903,9.7824,23.8821]
[1672557077433,40.0,9.7902,9.7824,23.8821]
[1672557077654,40.0,9.79,9.7825,23.8821]
[1672557077867,40.0,9.7898,9.7825,23.8821]
[1672557078081,76.7,9.7897,9.7825,23.8821]
[1672557078272,40.0,9.7896,9.7825,23.8821]
[1672557078483,76.7,9.7895,9.7825,23.8821]
[1672557078698,40.0,9.7894,9.7825,23.8821]
[1672557078919,40.0,9.7892,9.7825,23.8821]
[1672557079134,76.7,9.7891,9.7825,23.8821]
[1672557079331,40.0,9.789,9.7825,23.8821]
[1672557079544,40.0,9.7888,9.7825,23.8821]
[1672557079752,76.71,9.7887,9.7825,23.8821]
[1672557079975,40.0,9.7886,9.7825,23.8821]
[1672557080178,76.71,9.7885,9.7825,23.8821]
[1672557080496,40.0,9.7884,9.7825,23.8821]
[1672557080816,76.7,9.7897,9.7825,23.8821]
[1672557081028,40.0,9.7896,9.7825,23.8821]
[1672557081217,76.7,9.7895,9.7825,23.8821]
[1672557081553,76.7,9.7899,9.7825,23.8821]
[1672557081764,40.0,9.7898,9.7825,23.8821]
[1672557081948,40.0,9.7896,9.7825,23.8821]
[1672557082166,76.7,9.7895,9.7825,23.8821]
[1672557082378,40.0,9.7894,9.7825,23.8821]
[1672557082589,76.7,9.7893,9.7825,23.8821]
[1672557082811,40.0,9.7892,9.7825,23.8821]
[1672557083021,40.0,9.789,9.7825,23.8821]
[1672557083226,76.7,9.7889,9.7825,23.8821]
[1672557083444,40.0,9.7888,9.7825,23.8821]
[1672557085124,76.7,9.7889,9.7825,23.8821]
[1672557086071,76.7,9.7893,9.7825,23.8821]
[1672557086288,40.0,9.7896,9.7825,23.8821]
[1672557086493,40.0,9.7894,9.7825,23.8821]
[1672557086690,76.7,9.7893,9.7825,23.8821]
[1672557086898,40.0,9.7892,9.7825,23.8821]
[1672557087125,40.0,9.789,9.7825,23.8821]
[1672557087338,76.7,9.7889,9.7825,23.8821]
[1672557089114,40.0,9.7894,9.7825,23.8821]
[1672557089326,40.0,9.7892,9.7825,23.8821]
[1672557089531,76.7,9.7891,9.7825,23.8821]
[1672557090797,76.7,9.7893,9.7825,23.8821]
[1672557091013,40.0,9.7892,9.7825,23.8821]
[1672557091420,76.7,9.7899,9.7825,23.8821]
[1672557091642,76.69,9.7901,9.7825,23.8821]
[1672557091854,40.0,9.79,9.7826,23.4533]
[1672557092064,76.7,9.7899,9.7826,23.4533]
[1672557092593,76.69,9.7903,9.7826,23.4533]
[1672557093004,99.70548971,9.7983,9.7822,24.7408]
[1672557093005,76.69,9.7905,9.7827,23.4533]
[1672557093212,40.0,9.7908,9.7827,23.4533]
[1672557093430,40.0,9.7906,9.7827,23.4533]
[1672557093648,76.69,9.7905,9.7828,23.2115]
[1672557093854,40.0,9.7904,9.7828,23.2115]
[1672557094067,76.69,9.7903,9.7828,23.2115]
[1672557094275,40.0,9.7902,9.7829,23.2115]
[1672557094488,40.0,9.79,9.7829,23.2115]
[1672557094697,76.7,9.7899,9.7829,23.2115]
[1672557095218,40.0,9.7898,9.7829,23.2115]
[1672557095430,40.0,9.7896,9.7829,23.2115]
[1672557095639,76.7,9.7895,9.7829,23.2115]
[1672557096370,40.0,9.7896,9.7829,23.2115]
[1672557096577,76.7,9.7895,9.7829,23.2115]
[1672557096998,40.0,9.7898,9.7829,23.2115]
[1672557096999,76.7,9.7897,9.7829,23.2115]
[1672557097840,40.0,9.7896,9.7829,23.0932537]
[1672557098057,40.0,9.7894,9.7829,23.0932537]
[1672557098380,76.68,9.7915,9.783,116.75]
[1672557098582,76.68,9.7921,9.7832,40.0]
[1672557098795,22.9459,9.7922,9.7834,305.4]
[1672557098995,22.9459,9.7922,9.7836,305.4]
[1672557099203,22.9459,9.7922,9.7837,40.0]
[1672557099969,22.9459,9.7922,9.784,40.0]
[1672557100271,22.9459,9.7922,9.7842,305.4]
[1672557100468,22.9459,9.7922,9.7845,40.0]
[1672557100680,22.9459,9.7922,9.7848,40.0]
[1672557100897,22.9459,9.7922,9.7848,76.74]
[1672557101211,22.9459,9.7922,9.7795,76.78]
[1672557101425,76.68,9.7921,9.7831,110.7255]
[1672557101624,76.68,9.7921,9.7832,40.0]
[1672557102035,76.68,9.7921,9.7832,345.4]
[1672557102251,22.9459,9.7922,9.7834,305.4]
[1672557102580,22.9459,9.7922,9.7837,40.0]
[1672557102795,22.9459,9.7922,9.784,40.0]
[1672557103000,22.9459,9.7922,9.7842,305.4]
[1672557103322,22.9459,9.7922,9.7845,40.0]
[1672557103511,22.9459,9.7922,9.7847,305.4]
[1672557103721,22.9459,9.7922,9.7848,40.0]
[1672557107329,22.9459,9.7922,9.7851,40.0]
[1672557110463,22.9459,9.7922,9.7853,305.4]
[1672557110672,112.3133,9.7935,9.7852,76.73]
[1672557110673,112.3133,9.7935,9.7856,40.0]
[1672557110886,80.4519,9.7935,9.7858,305.4]
[1672557111099,76.61,9.8013,9.786,305.4]
[1672557111309,76.6,9.8019,9.7862,305.4]
[1672557111514,76.6,9.8019,9.7861,113.73]
[1672557111515,76.6,9.8019,9.7864,305.4]
[1672557111721,76.6,9.8019,9.7866,305.4]
[1672557111936,76.6,9.8019,9.7868,305.4]
[1672557112256,76.6,9.8019,9.7871,40.0]
[1672557112474,76.6,9.8019,9.7874,40.0]
[1672557112688,40.0,9.8018,9.7877,40.0]
[1672557112897,40.0,9.8018,9.7879,305.4]
[1672557112898,76.6,9.8017,9.7879,305.4]
[1672557113204,40.0,9.8016,9.7881,305.4]
[1672557113415,40.0,9.8014,9.7883,345.4]
[1672557113606,40.0,9.8012,9.7886,40.0]
[1672557113818,76.61,9.8011,9.7888,305.4]
[1672557114046,40.0,9.801,9.789,305.4]
[1672557114234,40.0,9.801,9.7893,40.0]
[1672557114235,40.0,9.8008,9.7893,40.0]
[1672557114452,40.0,9.8006,9.7896,40.0]
[1672557114769,40.0,9.8004,9.7899,40.0]
[1672557114973,76.61,9.8003,9.7902,40.0]
[1672557115182,40.0,9.8002,9.7904,305.4]
[1672557115412,40.0,9.8002,9.7907,40.0]
[1672557115733,40.0,9.8002,9.7908,76.69]
[1672557115942,40.0,9.8,9.7907,162.2715]
[1672557116132,76.62,9.7999,9.7907,162.2715]
[1672557116445,40.0,9.7998,9.7907,162.2715]